[Event "December 12 Late 2023"]
[Site "https://www.chess.com"]
[Date "2023.12.12"]
[Round "9"]
[White "Bonin, Jay"]
[Black "De Lima, Valdenicio Marcelino"]
[Result "1-0"]
[Board "86"]
[TimeControl "180+1"]
[WhiteFideId "2000644"]
[BlackFideId "2132044"]
[WhiteElo "2315"]
[BlackElo "2246"]
[WhiteTeam "USA"]
[BlackTeam "BRA"]
[WhiteClock "0:00:13"]
[BlackClock "0:00:08"]

1. d4 {[%clk 0:02:59]}  Nf6 {[%clk 0:02:55]} 2. Nf3 {[%clk 0:02:57]}  c5 {[%clk 0:02:54]} 3. d5 {[%clk 0:02:56]}  d6 {[%clk 0:02:52]} 4. Nc3 {[%clk 0:02:53]}  g6 {[%clk 0:02:49]} 5. e4 {[%clk 0:02:52]}  Bg7 {[%clk 0:02:46]} 6. Bb5+ {[%clk 0:02:52]}  Nbd7 {[%clk 0:02:39]} 7. a4 {[%clk 0:02:51]}  O-O {[%clk 0:02:32]} 8. O-O {[%clk 0:02:48]}  a6 {[%clk 0:02:26]} 9. Be2 {[%clk 0:02:47]}  h6 {[%clk 0:02:16]} 10. h3 {[%clk 0:02:44]}  Ne8 {[%clk 0:02:13]} 11. Be3 {[%clk 0:02:37]}  Nc7 {[%clk 0:02:12]} 12. Qd2 {[%clk 0:02:35]}  Kh7 {[%clk 0:02:11]} 13. a5 {[%clk 0:02:29]}  Rb8 {[%clk 0:02:10]} 14. Rfb1 {[%clk 0:02:24]}  b5 {[%clk 0:02:08]} 15. axb6 {[%clk 0:02:23]}  Rxb6 {[%clk 0:02:07]} 16. Ra4 {[%clk 0:02:09]}  Nb5 {[%clk 0:01:56]} 17. Nd1 {[%clk 0:02:02]}  Nf6 {[%clk 0:01:34]} 18. c4 {[%clk 0:01:56]}  Nc7 {[%clk 0:01:14]} 19. Bd3 {[%clk 0:01:45]}  Bd7 {[%clk 0:01:14]} 20. Ra5 {[%clk 0:01:36]}  Qb8 {[%clk 0:01:12]} 21. b4 {[%clk 0:01:29]}  Rxb4 {[%clk 0:01:06]} 22. Rxb4 {[%clk 0:01:28]}  Qxb4 {[%clk 0:01:07]} 23. Qxb4 {[%clk 0:01:26]}  cxb4 {[%clk 0:01:07]} 24. Bb6 {[%clk 0:01:24]}  Na8 {[%clk 0:01:01]} 25. Rxa6 {[%clk 0:01:20]}  Rb8 {[%clk 0:01:01]} 26. Bd4 {[%clk 0:01:15]}  Nh5 {[%clk 0:00:50]} 27. Nb2 {[%clk 0:01:05]}  Nf4 {[%clk 0:00:49]} 28. Bf1 {[%clk 0:01:03]}  Bxd4 {[%clk 0:00:30]} 29. Nxd4 {[%clk 0:01:00]}  Nb6 {[%clk 0:00:31]} 30. Nc6 {[%clk 0:00:50]}  Bxc6 {[%clk 0:00:25]} 31. dxc6 {[%clk 0:00:49]}  Ne6 {[%clk 0:00:23]} 32. g3 {[%clk 0:00:38]}  Nc8 {[%clk 0:00:21]} 33. f4 {[%clk 0:00:29]}  Nc5 {[%clk 0:00:21]} 34. Ra5 {[%clk 0:00:25]}  Nxe4 {[%clk 0:00:19]} 35. Bg2 {[%clk 0:00:22]}  Nxg3 {[%clk 0:00:19]} 36. c7 {[%clk 0:00:21]}  Rb6 {[%clk 0:00:19]} 37. Ra8 {[%clk 0:00:20]}  Ne2+ {[%clk 0:00:18]} 38. Kf2 {[%clk 0:00:18]}  Nxf4 {[%clk 0:00:18]} 39. Rxc8 {[%clk 0:00:17]}  Nxg2 {[%clk 0:00:18]} 40. Rh8+ {[%clk 0:00:14]}  Kxh8 {[%clk 0:00:18]} 41. c8=Q+ {[%clk 0:00:14]}  Kg7 {[%clk 0:00:08]} 42. Kxg2 {[%clk 0:00:13]} 1-0

[Event "December 12 Late 2023"]
[Site "https://www.chess.com"]
[Date "2023.12.12"]
[Round "9"]
[White "Clarke, Matthew"]
[Black "Kappeler, Kaspar"]
[Result "1-0"]
[Board "87"]
[TimeControl "180+1"]
[WhiteFideId "3227804"]
[BlackFideId "1309072"]
[WhiteElo "2221"]
[BlackElo "2312"]
[WhiteTeam "AUS"]
[BlackTeam "SUI"]
[WhiteClock "0:00:06"]
[BlackClock "0:00:00"]

1. d4 {[%clk 0:03:00]}  Nf6 {[%clk 0:02:58]} 2. c4 {[%clk 0:03:00]}  e6 {[%clk 0:02:59]} 3. g3 {[%clk 0:03:01]}  d5 {[%clk 0:02:58]} 4. Bg2 {[%clk 0:03:01]}  dxc4 {[%clk 0:02:58]} 5. Nf3 {[%clk 0:03:02]}  c5 {[%clk 0:02:58]} 6. O-O {[%clk 0:02:55]}  Nc6 {[%clk 0:02:58]} 7. dxc5 {[%clk 0:02:33]}  Qxd1 {[%clk 0:02:56]} 8. Rxd1 {[%clk 0:02:34]}  Bxc5 {[%clk 0:02:56]} 9. Nbd2 {[%clk 0:02:34]}  c3 {[%clk 0:02:56]} 10. bxc3 {[%clk 0:02:35]}  Bd7 {[%clk 0:02:53]} 11. Rb1 {[%clk 0:02:28]}  Na5 {[%clk 0:02:43]} 12. Ne5 {[%clk 0:02:20]}  Ba4 {[%clk 0:02:42]} 13. Nb3 {[%clk 0:01:54]}  Rc8 {[%clk 0:02:31]} 14. Bf4 {[%clk 0:01:43]}  b6 {[%clk 0:02:05]} 15. Rd2 {[%clk 0:01:26]}  O-O {[%clk 0:01:54]} 16. Nxa5 {[%clk 0:01:21]}  bxa5 {[%clk 0:01:54]} 17. Rb7 {[%clk 0:01:20]}  h6 {[%clk 0:01:18]} 18. h4 {[%clk 0:01:16]}  Ba3 {[%clk 0:00:55]} 19. Rxa7 {[%clk 0:01:08]}  Rxc3 {[%clk 0:00:40]} 20. Rxa5 {[%clk 0:01:05]}  Bc1 {[%clk 0:00:26]} 21. Rxa4 {[%clk 0:00:59]}  Bxd2 {[%clk 0:00:26]} 22. Bxd2 {[%clk 0:01:00]}  Rc2 {[%clk 0:00:26]} 23. Bb4 {[%clk 0:00:53]}  Rd8 {[%clk 0:00:22]} 24. Ra7 {[%clk 0:00:47]}  Nd5 {[%clk 0:00:18]} 25. Bxd5 {[%clk 0:00:33]}  Rxd5 {[%clk 0:00:18]} 26. Nxf7 {[%clk 0:00:26]}  Rxe2 {[%clk 0:00:18]} 27. Nd6 {[%clk 0:00:20]}  Rb2 {[%clk 0:00:15]} 28. a3 {[%clk 0:00:20]}  Rxb4 {[%clk 0:00:15]} 29. axb4 {[%clk 0:00:19]}  Rxd6 {[%clk 0:00:15]} 30. Rb7 {[%clk 0:00:17]}  Rd1+ {[%clk 0:00:14]} 31. Kg2 {[%clk 0:00:16]}  Rb1 {[%clk 0:00:14]} 32. Kf3 {[%clk 0:00:16]}  Kh7 {[%clk 0:00:14]} 33. b5 {[%clk 0:00:16]}  Rb4 {[%clk 0:00:13]} 34. h5 {[%clk 0:00:15]}  Kg8 {[%clk 0:00:08]} 35. b6 {[%clk 0:00:16]}  Rb5 {[%clk 0:00:07]} 36. g4 {[%clk 0:00:14]}  Kh7 {[%clk 0:00:06]} 37. Ke3 {[%clk 0:00:14]}  Re5+ {[%clk 0:00:05]} 38. Kd4 {[%clk 0:00:13]}  Rd5+ {[%clk 0:00:05]} 39. Kc4 {[%clk 0:00:13]}  Rd2 {[%clk 0:00:05]} 40. f3 {[%clk 0:00:10]}  Rf2 {[%clk 0:00:05]} 41. Rf7 {[%clk 0:00:08]}  Rb2 {[%clk 0:00:03]} 42. b7 {[%clk 0:00:07]}  Kg8 {[%clk 0:00:04]} 43. Rc7 {[%clk 0:00:06]}  Kf8 {[%clk 0:00:04]} 44. Rc8+ {[%clk 0:00:06]}  Kf7 {[%clk 0:00:02]} 45. b8=Q {[%clk 0:00:07]}  Kf6 {[%clk 0:00:02]} 46. Qxb2+ {[%clk 0:00:06]}  Kg5 {[%clk 0:00:02]} 47. Qxg7+ {[%clk 0:00:06]}  Kh4 {[%clk 0:00:02]} 48. Qxh6 {[%clk 0:00:06]}  Kg3 {[%clk 0:00:02]} 49. Qxe6 {[%clk 0:00:06]}  Kh2 {[%clk 0:00:02]} 50. h6 {[%clk 0:00:06]}  Kh3 {[%clk 0:00:03]} 51. g5+ {[%clk 0:00:07]}  Kg3 {[%clk 0:00:04]} 52. Qg4+ {[%clk 0:00:07]}  Kf2 {[%clk 0:00:03]} 53. f4 {[%clk 0:00:07]}  Ke1 {[%clk 0:00:00]} 54. Qg2 {[%clk 0:00:06]} 1-0

[Event "December 12 Late 2023"]
[Site "https://www.chess.com"]
[Date "2023.12.12"]
[Round "9"]
[White "Tarnowska, Aleksandra"]
[Black "Kornyukov, Alexey"]
[Result "1/2-1/2"]
[Board "88"]
[TimeControl "180+1"]
[WhiteFideId "1180967"]
[BlackFideId "4150457"]
[WhiteElo "2196"]
[BlackElo "2310"]
[WhiteTeam "POL"]
[BlackTeam "RUS"]
[WhiteClock "0:00:03"]
[BlackClock "0:00:02"]

1. e4 {[%clk 0:03:00]}  c5 {[%clk 0:02:58]} 2. Nf3 {[%clk 0:03:00]}  Nc6 {[%clk 0:02:57]} 3. Bb5 {[%clk 0:03:00]}  e6 {[%clk 0:02:57]} 4. O-O {[%clk 0:03:00]}  Nge7 {[%clk 0:02:56]} 5. c3 {[%clk 0:02:58]}  a6 {[%clk 0:02:56]} 6. Ba4 {[%clk 0:02:55]}  b5 {[%clk 0:02:55]} 7. Bc2 {[%clk 0:02:55]}  Bb7 {[%clk 0:02:50]} 8. d4 {[%clk 0:02:39]}  cxd4 {[%clk 0:02:51]} 9. Nxd4 {[%clk 0:02:39]}  Ng6 {[%clk 0:02:45]} 10. Nd2 {[%clk 0:01:45]}  Bd6 {[%clk 0:02:14]} 11. N2f3 {[%clk 0:01:38]}  Qc7 {[%clk 0:01:47]} 12. Re1 {[%clk 0:01:00]}  O-O {[%clk 0:01:41]} 13. h3 {[%clk 0:00:42]}  Rac8 {[%clk 0:01:18]} 14. Be3 {[%clk 0:00:33]}  Bf4 {[%clk 0:01:09]} 15. Nxc6 {[%clk 0:00:25]}  dxc6 {[%clk 0:01:00]} 16. Qd2 {[%clk 0:00:21]}  Rfd8 {[%clk 0:00:56]} 17. Qe2 {[%clk 0:00:12]}  c5 {[%clk 0:00:53]} 18. Rad1 {[%clk 0:00:11]}  h6 {[%clk 0:00:46]} 19. Rxd8+ {[%clk 0:00:10]}  Rxd8 {[%clk 0:00:45]} 20. g3 {[%clk 0:00:04]}  Bxe3 {[%clk 0:00:36]} 21. Qxe3 {[%clk 0:00:05]}  c4 {[%clk 0:00:30]} 22. Rd1 {[%clk 0:00:04]}  Rxd1+ {[%clk 0:00:29]} 23. Bxd1 {[%clk 0:00:05]}  Ne5 {[%clk 0:00:26]} 24. Nxe5 {[%clk 0:00:05]}  Qxe5 {[%clk 0:00:27]} 25. f4 {[%clk 0:00:05]}  Qxe4 {[%clk 0:00:27]} 26. Qxe4 {[%clk 0:00:05]}  Bxe4 {[%clk 0:00:28]} 27. a4 {[%clk 0:00:03]}  Kf8 {[%clk 0:00:21]} 28. Kf2 {[%clk 0:00:02]}  Ke7 {[%clk 0:00:19]} 29. Ke3 {[%clk 0:00:03]}  Bc6 {[%clk 0:00:18]} 30. axb5 {[%clk 0:00:02]}  axb5 {[%clk 0:00:18]} 31. Kd4 {[%clk 0:00:02]}  Kd6 {[%clk 0:00:18]} 32. h4 {[%clk 0:00:03]}  f6 {[%clk 0:00:18]} 33. Bh5 {[%clk 0:00:03]}  e5+ {[%clk 0:00:18]} 34. fxe5+ {[%clk 0:00:03]}  fxe5+ {[%clk 0:00:18]} 35. Ke3 {[%clk 0:00:04]}  Kc5 {[%clk 0:00:17]} 36. Bg6 {[%clk 0:00:04]}  Kb6 {[%clk 0:00:14]} 37. Be4 {[%clk 0:00:04]}  Kc5 {[%clk 0:00:13]} 38. Bf5 {[%clk 0:00:03]}  Bd5 {[%clk 0:00:11]} 39. Bd7 {[%clk 0:00:03]}  b4 {[%clk 0:00:10]} 40. g4 {[%clk 0:00:03]}  bxc3 {[%clk 0:00:07]} 41. bxc3 {[%clk 0:00:03]}  Kb6 {[%clk 0:00:06]} 42. Bf5 {[%clk 0:00:02]}  Kc6 {[%clk 0:00:05]} 43. g5 {[%clk 0:00:01]}  Kd6 {[%clk 0:00:04]} 44. gxh6 {[%clk 0:00:01]}  gxh6 {[%clk 0:00:04]} 45. Bg6 {[%clk 0:00:02]}  Ke6 {[%clk 0:00:04]} 46. Bh7 {[%clk 0:00:02]}  Kf6 {[%clk 0:00:03]} 47. Kf2 {[%clk 0:00:01]}  e4 {[%clk 0:00:02]} 48. Ke3 {[%clk 0:00:01]}  Ke5 {[%clk 0:00:03]} 49. Bg6 {[%clk 0:00:02]}  Bc6 {[%clk 0:00:02]} 50. Bh7 {[%clk 0:00:02]}  Bd5 {[%clk 0:00:02]} 51. Bg6 {[%clk 0:00:03]}  Bc6 {[%clk 0:00:02]} 52. Bf7 {[%clk 0:00:03]}  Bd5 {[%clk 0:00:02]} 53. Bg6 {[%clk 0:00:03]} 1/2-1/2

[Event "December 12 Late 2023"]
[Site "https://www.chess.com"]
[Date "2023.12.12"]
[Round "9"]
[White "Wang, Alexander J"]
[Black "Kujawski, Adam"]
[Result "1-0"]
[Board "92"]
[TimeControl "180+1"]
[WhiteFideId "30955270"]
[BlackFideId "1100920"]
[WhiteElo "2218"]
[BlackElo "2340"]
[WhiteTeam "USA"]
[BlackTeam "POL"]
[WhiteClock "0:00:09"]
[BlackClock "0:00:23"]

1. e4 {[%clk 0:03:00]}  Nf6 {[%clk 0:02:58]} 2. e5 {[%clk 0:03:00]}  Nd5 {[%clk 0:02:58]} 3. d4 {[%clk 0:02:59]}  d6 {[%clk 0:02:58]} 4. c4 {[%clk 0:02:58]}  Nb6 {[%clk 0:02:57]} 5. exd6 {[%clk 0:02:56]}  exd6 {[%clk 0:02:57]} 6. Nc3 {[%clk 0:02:56]}  Be7 {[%clk 0:02:57]} 7. Nf3 {[%clk 0:02:55]}  O-O {[%clk 0:02:56]} 8. Be2 {[%clk 0:02:50]}  Bg4 {[%clk 0:02:56]} 9. O-O {[%clk 0:02:43]}  Nc6 {[%clk 0:02:55]} 10. b3 {[%clk 0:02:25]}  Bf6 {[%clk 0:02:50]} 11. Be3 {[%clk 0:02:22]}  d5 {[%clk 0:02:46]} 12. c5 {[%clk 0:02:19]}  Nc8 {[%clk 0:02:43]} 13. h3 {[%clk 0:02:18]}  Bh5 {[%clk 0:02:30]} 14. Qd2 {[%clk 0:01:55]}  Re8 {[%clk 0:02:25]} 15. Rad1 {[%clk 0:01:44]}  a5 {[%clk 0:02:18]} 16. a3 {[%clk 0:01:12]}  Bg6 {[%clk 0:02:13]} 17. Bd3 {[%clk 0:01:03]}  N8e7 {[%clk 0:02:05]} 18. Bxg6 {[%clk 0:01:03]}  hxg6 {[%clk 0:02:00]} 19. Rfe1 {[%clk 0:00:59]}  Nf5 {[%clk 0:01:59]} 20. Qd3 {[%clk 0:00:49]}  Qd7 {[%clk 0:01:51]} 21. Ne2 {[%clk 0:00:46]}  Nxe3 {[%clk 0:01:46]} 22. fxe3 {[%clk 0:00:47]}  Re7 {[%clk 0:01:43]} 23. Nf4 {[%clk 0:00:42]}  Rae8 {[%clk 0:01:41]} 24. Re2 {[%clk 0:00:30]}  Re4 {[%clk 0:01:35]} 25. Nd2 {[%clk 0:00:22]}  Nxd4 {[%clk 0:00:52]} 26. exd4 {[%clk 0:00:20]}  Rxf4 {[%clk 0:00:40]} 27. Rxe8+ {[%clk 0:00:12]}  Qxe8 {[%clk 0:00:41]} 28. Nf3 {[%clk 0:00:12]}  Re4 {[%clk 0:00:39]} 29. Kh2 {[%clk 0:00:11]}  c6 {[%clk 0:00:38]} 30. b4 {[%clk 0:00:10]}  axb4 {[%clk 0:00:36]} 31. axb4 {[%clk 0:00:11]}  Re3 {[%clk 0:00:36]} 32. Qd2 {[%clk 0:00:11]}  Qe4 {[%clk 0:00:35]} 33. b5 {[%clk 0:00:10]}  Re2 {[%clk 0:00:33]} 34. Qd3 {[%clk 0:00:09]}  Qf4+ {[%clk 0:00:31]} 35. Kh1 {[%clk 0:00:08]}  Qg3 {[%clk 0:00:29]} 36. Qxe2 {[%clk 0:00:07]}  cxb5 {[%clk 0:00:29]} 37. Qe8+ {[%clk 0:00:07]}  Kh7 {[%clk 0:00:29]} 38. Qxb5 {[%clk 0:00:07]}  g5 {[%clk 0:00:28]} 39. Qd3+ {[%clk 0:00:06]}  g6 {[%clk 0:00:26]} 40. Nh2 {[%clk 0:00:04]}  Qf4 {[%clk 0:00:25]} 41. Ng4 {[%clk 0:00:05]}  Bxd4 {[%clk 0:00:24]} 42. Rf1 {[%clk 0:00:05]}  Qe4 {[%clk 0:00:19]} 43. Qxe4 {[%clk 0:00:04]}  dxe4 {[%clk 0:00:20]} 44. Rxf7+ {[%clk 0:00:04]}  Kg8 {[%clk 0:00:19]} 45. Re7 {[%clk 0:00:05]}  Bxc5 {[%clk 0:00:19]} 46. Rxe4 {[%clk 0:00:03]}  Kf7 {[%clk 0:00:19]} 47. Rc4 {[%clk 0:00:03]}  Bd6 {[%clk 0:00:15]} 48. Rd4 {[%clk 0:00:04]}  Ke6 {[%clk 0:00:15]} 49. Rd3 {[%clk 0:00:04]}  b5 {[%clk 0:00:14]} 50. Rb3 {[%clk 0:00:04]}  b4 {[%clk 0:00:14]} 51. Ne3 {[%clk 0:00:04]}  Bc5 {[%clk 0:00:13]} 52. Nc2 {[%clk 0:00:04]}  Kd5 {[%clk 0:00:13]} 53. Rxb4 {[%clk 0:00:03]}  Bxb4 {[%clk 0:00:12]} 54. Nxb4+ {[%clk 0:00:04]}  Ke4 {[%clk 0:00:13]} 55. Kg1 {[%clk 0:00:04]}  g4 {[%clk 0:00:13]} 56. hxg4 {[%clk 0:00:03]}  Kf4 {[%clk 0:00:13]} 57. Kf2 {[%clk 0:00:04]}  Kxg4 {[%clk 0:00:14]} 58. Nd3 {[%clk 0:00:04]}  g5 {[%clk 0:00:13]} 59. Ne5+ {[%clk 0:00:03]}  Kf4 {[%clk 0:00:14]} 60. Nf3 {[%clk 0:00:03]}  g4 {[%clk 0:00:14]} 61. Nd2 {[%clk 0:00:03]}  g3+ {[%clk 0:00:15]} 62. Kg1 {[%clk 0:00:03]}  Ke5 {[%clk 0:00:14]} 63. Nf3+ {[%clk 0:00:02]}  Kf4 {[%clk 0:00:14]} 64. Kf1 {[%clk 0:00:03]}  Ke3 {[%clk 0:00:15]} 65. Ke1 {[%clk 0:00:04]}  Kd3 {[%clk 0:00:15]} 66. Ng1 {[%clk 0:00:03]}  Ke3 {[%clk 0:00:16]} 67. Ne2 {[%clk 0:00:03]}  Kd3 {[%clk 0:00:16]} 68. Nxg3 {[%clk 0:00:03]}  Ke3 {[%clk 0:00:17]} 69. Kf1 {[%clk 0:00:04]}  Kf4 {[%clk 0:00:17]} 70. Kf2 {[%clk 0:00:05]}  Kg4 {[%clk 0:00:18]} 71. Ne2 {[%clk 0:00:05]}  Kh4 {[%clk 0:00:18]} 72. g3+ {[%clk 0:00:06]}  Kg4 {[%clk 0:00:19]} 73. Kg2 {[%clk 0:00:06]}  Kg5 {[%clk 0:00:19]} 74. Kf3 {[%clk 0:00:07]}  Kf5 {[%clk 0:00:20]} 75. g4+ {[%clk 0:00:08]}  Ke5 {[%clk 0:00:21]} 76. Kg3 {[%clk 0:00:08]}  Kd5 {[%clk 0:00:22]} 77. g5 {[%clk 0:00:08]}  Kc4 {[%clk 0:00:23]} 78. Kg4 {[%clk 0:00:08]}  Kd5 {[%clk 0:00:24]} 79. Kf5 {[%clk 0:00:09]}  Kc4 {[%clk 0:00:23]} 80. Kf6 {[%clk 0:00:09]} 1-0

[Event "December 12 Late 2023"]
[Site "https://www.chess.com"]
[Date "2023.12.12"]
[Round "9"]
[White "Ruiz Aguilar, Pablo Alexander"]
[Black "Burke, Paul"]
[Result "1-0"]
[Board "95"]
[TimeControl "180+1"]
[WhiteFideId "4401352"]
[BlackFideId "2605767"]
[WhiteElo "2277"]
[BlackElo "1857"]
[WhiteTeam "COL"]
[BlackTeam "CAN"]
[WhiteClock "0:01:36"]
[BlackClock "0:00:05"]

1. e4 {[%clk 0:03:00]}  a6 {[%clk 0:02:58]} 2. d4 {[%clk 0:03:00]}  d6 {[%clk 0:02:58]} 3. c3 {[%clk 0:02:58]}  g6 {[%clk 0:02:58]} 4. Bd3 {[%clk 0:02:58]}  h6 {[%clk 0:02:58]} 5. f4 {[%clk 0:02:59]}  Bg7 {[%clk 0:02:58]} 6. Nf3 {[%clk 0:02:58]}  Nd7 {[%clk 0:02:58]} 7. O-O {[%clk 0:02:57]}  e6 {[%clk 0:02:58]} 8. e5 {[%clk 0:02:55]}  Ne7 {[%clk 0:02:57]} 9. exd6 {[%clk 0:02:53]}  cxd6 {[%clk 0:02:56]} 10. Nbd2 {[%clk 0:02:54]}  O-O {[%clk 0:02:55]} 11. Ne4 {[%clk 0:02:51]}  d5 {[%clk 0:02:50]} 12. Nd6 {[%clk 0:02:51]}  Nf6 {[%clk 0:02:39]} 13. Nxc8 {[%clk 0:02:51]}  Rxc8 {[%clk 0:02:38]} 14. Ne5 {[%clk 0:02:52]}  Nc6 {[%clk 0:02:22]} 15. Qf3 {[%clk 0:02:46]}  Nd7 {[%clk 0:02:01]} 16. Qh3 {[%clk 0:02:44]}  Qc7 {[%clk 0:01:31]} 17. Nxd7 {[%clk 0:02:33]}  Qxd7 {[%clk 0:01:30]} 18. f5 {[%clk 0:02:33]}  exf5 {[%clk 0:01:22]} 19. Bxh6 {[%clk 0:02:34]}  Qd6 {[%clk 0:00:56]} 20. Bf4 {[%clk 0:02:27]}  Qd8 {[%clk 0:00:51]} 21. Bd2 {[%clk 0:02:19]}  Re8 {[%clk 0:00:48]} 22. Rae1 {[%clk 0:02:14]}  Qf6 {[%clk 0:00:47]} 23. Qg3 {[%clk 0:02:03]}  Rxe1 {[%clk 0:00:25]} 24. Rxe1 {[%clk 0:02:03]}  Nxd4 {[%clk 0:00:23]} 25. cxd4 {[%clk 0:01:57]}  Qxd4+ {[%clk 0:00:23]} 26. Kh1 {[%clk 0:01:57]}  Qxb2 {[%clk 0:00:22]} 27. Bg5 {[%clk 0:01:40]}  Qxa2 {[%clk 0:00:20]} 28. Bxf5 {[%clk 0:01:36]}  gxf5 {[%clk 0:00:05]} 29. Bf6 {[%clk 0:01:36]} 1-0

[Event "December 12 Late 2023"]
[Site "https://www.chess.com"]
[Date "2023.12.12"]
[Round "9"]
[White "Harrington, Steve"]
[Black "Mazzilli, Piero"]
[Result "0-1"]
[Board "96"]
[TimeControl "180+1"]
[WhiteFideId "2038730"]
[BlackFideId "807087"]
[WhiteElo "2133"]
[BlackElo "2298"]
[WhiteTeam "USA"]
[BlackTeam "ITA"]
[WhiteClock "0:00:33"]
[BlackClock "0:01:24"]

1. e4 {[%clk 0:03:00]}  c5 {[%clk 0:02:59]} 2. c3 {[%clk 0:02:58]}  d5 {[%clk 0:02:59]} 3. exd5 {[%clk 0:02:58]}  Qxd5 {[%clk 0:02:59]} 4. d4 {[%clk 0:02:58]}  Nf6 {[%clk 0:03:00]} 5. Nf3 {[%clk 0:02:57]}  Nc6 {[%clk 0:03:01]} 6. Be2 {[%clk 0:02:57]}  e6 {[%clk 0:03:00]} 7. O-O {[%clk 0:02:57]}  cxd4 {[%clk 0:03:00]} 8. cxd4 {[%clk 0:02:56]}  Be7 {[%clk 0:03:01]} 9. Nc3 {[%clk 0:02:56]}  Qd6 {[%clk 0:03:00]} 10. Re1 {[%clk 0:02:56]}  O-O {[%clk 0:02:59]} 11. h3 {[%clk 0:02:54]}  a6 {[%clk 0:02:57]} 12. Bg5 {[%clk 0:02:49]}  b5 {[%clk 0:02:56]} 13. Rc1 {[%clk 0:02:47]}  Bb7 {[%clk 0:02:55]} 14. a3 {[%clk 0:02:41]}  Rfd8 {[%clk 0:02:49]} 15. Be3 {[%clk 0:02:32]}  Rac8 {[%clk 0:02:40]} 16. Bf1 {[%clk 0:02:24]}  Qb8 {[%clk 0:02:33]} 17. b4 {[%clk 0:02:15]}  Bf8 {[%clk 0:01:58]} 18. Qd2 {[%clk 0:02:11]}  e5 {[%clk 0:01:49]} 19. Ne4 {[%clk 0:01:38]}  Nxe4 {[%clk 0:01:47]} 20. Qd3 {[%clk 0:01:21]}  Nxd4 {[%clk 0:01:45]} 21. Rxc8 {[%clk 0:01:13]}  Nxf3+ {[%clk 0:01:35]} 22. gxf3 {[%clk 0:01:07]}  Qxc8 {[%clk 0:01:36]} 23. fxe4 {[%clk 0:00:40]}  Rxd3 {[%clk 0:01:33]} 24. Bxd3 {[%clk 0:00:40]}  Qc3 {[%clk 0:01:24]} 25. Rd1 {[%clk 0:00:33]}  Qxa3 {[%clk 0:01:24]} 0-1

[Event "December 12 Late 2023"]
[Site "https://www.chess.com"]
[Date "2023.12.12"]
[Round "9"]
[White "Kniazev, Igor"]
[Black "Curtis, John"]
[Result "1-0"]
[Board "98"]
[TimeControl "180+1"]
[WhiteFideId "4136349"]
[BlackFideId "3200256"]
[WhiteElo "2113"]
[BlackElo "2204"]
[WhiteTeam "RUS"]
[BlackTeam "AUS"]
[WhiteClock "0:00:30"]
[BlackClock "0:00:12"]

1. e4 {[%clk 0:03:00]}  c6 {[%clk 0:02:59]} 2. d4 {[%clk 0:03:00]}  d5 {[%clk 0:03:00]} 3. Nc3 {[%clk 0:03:00]}  dxe4 {[%clk 0:02:58]} 4. Nxe4 {[%clk 0:03:01]}  Bf5 {[%clk 0:02:58]} 5. Ng3 {[%clk 0:03:01]}  Nf6 {[%clk 0:02:58]} 6. Nxf5 {[%clk 0:03:00]}  Qa5+ {[%clk 0:02:58]} 7. Bd2 {[%clk 0:02:56]}  Qxf5 {[%clk 0:02:59]} 8. Nf3 {[%clk 0:02:56]}  Ne4 {[%clk 0:02:41]} 9. Bd3 {[%clk 0:02:53]}  Qe6 {[%clk 0:02:37]} 10. O-O {[%clk 0:02:48]}  Nxd2 {[%clk 0:02:36]} 11. Qxd2 {[%clk 0:02:46]}  Qd6 {[%clk 0:02:32]} 12. Ne5 {[%clk 0:02:37]}  Nd7 {[%clk 0:02:27]} 13. Rfe1 {[%clk 0:02:19]}  Nxe5 {[%clk 0:02:15]} 14. dxe5 {[%clk 0:02:17]}  Qe6 {[%clk 0:02:02]} 15. Qf4 {[%clk 0:02:09]}  g5 {[%clk 0:01:50]} 16. Qe4 {[%clk 0:01:58]}  O-O-O {[%clk 0:01:41]} 17. Bc4 {[%clk 0:01:55]}  Qg6 {[%clk 0:01:39]} 18. Qe3 {[%clk 0:01:39]}  e6 {[%clk 0:01:27]} 19. Qxa7 {[%clk 0:01:36]}  Bb4 {[%clk 0:01:06]} 20. c3 {[%clk 0:01:25]}  Be7 {[%clk 0:01:05]} 21. Ba6 {[%clk 0:01:16]}  bxa6 {[%clk 0:00:59]} 22. Qxe7 {[%clk 0:00:54]}  Rd7 {[%clk 0:00:47]} 23. Qc5 {[%clk 0:00:55]}  Kb7 {[%clk 0:00:47]} 24. Qb4+ {[%clk 0:00:52]}  Ka7 {[%clk 0:00:43]} 25. Re4 {[%clk 0:00:48]}  Rhd8 {[%clk 0:00:42]} 26. Qc5+ {[%clk 0:00:46]}  Ka8 {[%clk 0:00:41]} 27. Qxc6+ {[%clk 0:00:46]}  Ka7 {[%clk 0:00:39]} 28. h3 {[%clk 0:00:39]}  Rd5 {[%clk 0:00:20]} 29. Qc7+ {[%clk 0:00:34]}  Ka8 {[%clk 0:00:20]} 30. Rb4 {[%clk 0:00:33]}  R5d7 {[%clk 0:00:11]} 31. Qc6+ {[%clk 0:00:29]}  Ka7 {[%clk 0:00:12]} 32. Qb6+ {[%clk 0:00:30]}  Ka8 {[%clk 0:00:12]} 33. Qxa6+ {[%clk 0:00:30]}  Ra7 {[%clk 0:00:12]} 34. Qc6+ {[%clk 0:00:30]}  Rb7 {[%clk 0:00:12]} 35. Qxb7# {[%clk 0:00:30]} 1-0